[Event "Titled Tuesday Blitz September 21 2021"]
[White "Laurusas, Tomas"]
[Black "Avramidou, Anastasia"]
[WhiteFideId "12803731"]
[BlackFideId "4239873"]
[WhiteElo "2573"]
[BlackElo "2183"]
[Result "1-0"]
[Round "04"]
[TimeControl "180+1"]
[Date "2021.09.21"]
[WhiteClock "0:00:19"]
[BlackClock "0:00:04"]

1. d4 {[%clk 0:02:46]}  Nf6 {[%clk 0:02:55]} 2. c4 {[%clk 0:02:37]}  g6 {[%clk 0:02:54]} 3. Nc3 {[%clk 0:02:37]}  d5 {[%clk 0:02:53]} 4. cxd5 {[%clk 0:02:37]}  Nxd5 {[%clk 0:02:52]} 5. e4 {[%clk 0:02:38]}  Nxc3 {[%clk 0:02:52]} 6. bxc3 {[%clk 0:02:39]}  Bg7 {[%clk 0:02:53]} 7. Nf3 {[%clk 0:02:39]}  O-O {[%clk 0:02:54]} 8. Be2 {[%clk 0:02:39]}  c5 {[%clk 0:02:55]} 9. O-O {[%clk 0:02:40]}  Nc6 {[%clk 0:02:55]} 10. Be3 {[%clk 0:02:40]}  Qc7 {[%clk 0:02:54]} 11. Rc1 {[%clk 0:02:36]}  b6 {[%clk 0:02:52]} 12. h4 {[%clk 0:02:31]}  Bg4 {[%clk 0:02:45]} 13. d5 {[%clk 0:02:30]}  Bxf3 {[%clk 0:02:43]} 14. gxf3 {[%clk 0:02:25]}  Na5 {[%clk 0:02:38]} 15. h5 {[%clk 0:02:24]}  Rfd8 {[%clk 0:02:33]} 16. hxg6 {[%clk 0:02:22]}  hxg6 {[%clk 0:02:34]} 17. c4 {[%clk 0:02:20]}  a6 {[%clk 0:02:15]} 18. Kg2 {[%clk 0:02:16]}  Qe5 {[%clk 0:02:07]} 19. Qd2 {[%clk 0:02:07]}  Nc6 {[%clk 0:01:49]} 20. Bf4 {[%clk 0:02:04]}  Qd4 {[%clk 0:01:36]} 21. Qc2 {[%clk 0:01:58]}  Nb4 {[%clk 0:01:34]} 22. Qb3 {[%clk 0:01:50]}  Qb2 {[%clk 0:01:28]} 23. Qxb2 {[%clk 0:01:43]}  Bxb2 {[%clk 0:01:29]} 24. Rb1 {[%clk 0:01:43]}  Bd4 {[%clk 0:01:26]} 25. a3 {[%clk 0:01:36]}  Na2 {[%clk 0:01:15]} 26. Rxb6 {[%clk 0:01:33]}  Nc3 {[%clk 0:01:12]} 27. Bd3 {[%clk 0:01:32]}  Kg7 {[%clk 0:00:52]} 28. Bc2 {[%clk 0:01:05]}  Re8 {[%clk 0:00:41]} 29. Bd2 {[%clk 0:01:03]}  Reb8 {[%clk 0:00:39]} 30. Rc6 {[%clk 0:00:50]}  Rb2 {[%clk 0:00:34]} 31. Bxc3 {[%clk 0:00:48]}  Bxc3 {[%clk 0:00:35]} 32. Ba4 {[%clk 0:00:48]}  Bd4 {[%clk 0:00:34]} 33. e5 {[%clk 0:00:46]}  Re2 {[%clk 0:00:16]} 34. f4 {[%clk 0:00:45]}  Rb8 {[%clk 0:00:15]} 35. Rc7 {[%clk 0:00:43]}  Kf8 {[%clk 0:00:14]} 36. d6 {[%clk 0:00:42]}  exd6 {[%clk 0:00:15]} 37. exd6 {[%clk 0:00:43]}  Re6 {[%clk 0:00:15]} 38. d7 {[%clk 0:00:41]}  Rd8 {[%clk 0:00:15]} 39. Rb1 {[%clk 0:00:35]}  Ke7 {[%clk 0:00:14]} 40. Rbb7 {[%clk 0:00:30]}  Re2 {[%clk 0:00:13]} 41. Rc8 {[%clk 0:00:30]}  Bxf2 {[%clk 0:00:02]} 42. Rxd8 {[%clk 0:00:24]}  Bh4+ {[%clk 0:00:03]} 43. Kf3 {[%clk 0:00:24]}  Rf2+ {[%clk 0:00:02]} 44. Ke3 {[%clk 0:00:24]}  Kxd8 {[%clk 0:00:02]} 45. Rb8+ {[%clk 0:00:18]}  Kc7 {[%clk 0:00:03]} 46. Rc8+ {[%clk 0:00:18]}  Kb7 {[%clk 0:00:03]} 47. Bc6+ {[%clk 0:00:19]}  Kb6 {[%clk 0:00:03]} 48. d8=Q+ {[%clk 0:00:18]}  Bxd8 {[%clk 0:00:04]} 49. Kxf2 {[%clk 0:00:19]} 1-0


[Site "https://www.chess.com"]

[Event "Titled Tuesday Blitz September 21 2021"]
[White "Levitskiy, Andrey"]
[Black "Dovbnia, Nikita"]
[WhiteFideId "14132885"]
[BlackFideId "54104599"]
[WhiteElo "2340"]
[BlackElo "2121"]
[Result "1-0"]
[Round "04"]
[TimeControl "180+1"]
[Date "2021.09.21"]
[WhiteClock "0:00:13"]
[BlackClock "0:00:01"]

1. e4 {[%clk 0:03:00]}  c5 {[%clk 0:03:00]} 2. Nf3 {[%clk 0:03:00]}  a6 {[%clk 0:03:00]} 3. d4 {[%clk 0:03:01]}  cxd4 {[%clk 0:03:00]} 4. c3 {[%clk 0:02:58]}  dxc3 {[%clk 0:02:58]} 5. Nxc3 {[%clk 0:02:58]}  d6 {[%clk 0:02:54]} 6. Bc4 {[%clk 0:02:57]}  Nc6 {[%clk 0:02:55]} 7. O-O {[%clk 0:02:33]}  Nf6 {[%clk 0:02:54]} 8. Bf4 {[%clk 0:02:15]}  e6 {[%clk 0:02:53]} 9. Qd2 {[%clk 0:02:08]}  Be7 {[%clk 0:02:51]} 10. Rad1 {[%clk 0:02:08]}  O-O {[%clk 0:02:42]} 11. Bxd6 {[%clk 0:02:04]}  Bxd6 {[%clk 0:02:42]} 12. Qxd6 {[%clk 0:02:05]}  Qxd6 {[%clk 0:02:43]} 13. Rxd6 {[%clk 0:02:05]}  Rd8 {[%clk 0:02:27]} 14. Rxd8+ {[%clk 0:02:04]}  Nxd8 {[%clk 0:02:28]} 15. Rd1 {[%clk 0:01:55]}  Nc6 {[%clk 0:02:27]} 16. Ne5 {[%clk 0:01:34]}  Kf8 {[%clk 0:02:22]} 17. Nxc6 {[%clk 0:01:28]}  bxc6 {[%clk 0:02:23]} 18. Na4 {[%clk 0:01:24]}  Nd7 {[%clk 0:02:07]} 19. Rd6 {[%clk 0:01:24]}  Ne5 {[%clk 0:01:34]} 20. Nb6 {[%clk 0:01:14]}  Ke7 {[%clk 0:01:21]} 21. Rxc6 {[%clk 0:00:56]}  Nxc6 {[%clk 0:01:15]} 22. Nxa8 {[%clk 0:00:57]}  Bb7 {[%clk 0:01:03]} 23. Nc7 {[%clk 0:00:53]}  Ne5 {[%clk 0:00:54]} 24. Bxa6 {[%clk 0:00:51]}  Bxe4 {[%clk 0:00:55]} 25. Be2 {[%clk 0:00:47]}  Kd7 {[%clk 0:00:52]} 26. Nb5 {[%clk 0:00:47]}  Kc6 {[%clk 0:00:48]} 27. a4 {[%clk 0:00:47]}  Nd3 {[%clk 0:00:40]} 28. Nc3 {[%clk 0:00:42]}  Bg6 {[%clk 0:00:38]} 29. Bxd3 {[%clk 0:00:38]}  Bxd3 {[%clk 0:00:38]} 30. b4 {[%clk 0:00:39]}  e5 {[%clk 0:00:37]} 31. f3 {[%clk 0:00:39]}  f5 {[%clk 0:00:36]} 32. Kf2 {[%clk 0:00:40]}  f4 {[%clk 0:00:34]} 33. Ke1 {[%clk 0:00:39]}  g5 {[%clk 0:00:32]} 34. Kd2 {[%clk 0:00:30]}  Bf1 {[%clk 0:00:31]} 35. g3 {[%clk 0:00:31]}  h5 {[%clk 0:00:16]} 36. Ne4 {[%clk 0:00:26]}  g4 {[%clk 0:00:14]} 37. fxg4 {[%clk 0:00:25]}  hxg4 {[%clk 0:00:14]} 38. b5+ {[%clk 0:00:20]}  Kb6 {[%clk 0:00:10]} 39. Nf2 {[%clk 0:00:20]}  Bh3 {[%clk 0:00:04]} 40. Kc3 {[%clk 0:00:14]}  e4 {[%clk 0:00:03]} 41. Nxe4 {[%clk 0:00:14]}  f3 {[%clk 0:00:03]} 42. Nf2 {[%clk 0:00:14]}  Bf1 {[%clk 0:00:04]} 43. Nxg4 {[%clk 0:00:13]}  Be2 {[%clk 0:00:02]} 44. Nf2 {[%clk 0:00:13]}  Bf1 {[%clk 0:00:01]} 45. h4 {[%clk 0:00:13]} 1-0


[Site "https://www.chess.com"]

[Event "Titled Tuesday Blitz September 21 2021"]
[White "Madaminov, Mukhiddin"]
[Black "Bluebaum, Matthias"]
[WhiteFideId "14210703"]
[BlackFideId "24651516"]
[WhiteElo "1855"]
[BlackElo "2681"]
[Result "0-1"]
[Round "04"]
[TimeControl "180+1"]
[Date "2021.09.21"]
[WhiteClock "0:01:59"]
[BlackClock "0:02:27"]

1. e4 {[%clk 0:03:00]}  e6 {[%clk 0:02:59]} 2. d4 {[%clk 0:03:00]}  d5 {[%clk 0:03:00]} 3. e5 {[%clk 0:03:01]}  c5 {[%clk 0:03:00]} 4. c3 {[%clk 0:03:01]}  Nc6 {[%clk 0:03:01]} 5. Nf3 {[%clk 0:03:02]}  Qb6 {[%clk 0:03:02]} 6. a3 {[%clk 0:03:02]}  c4 {[%clk 0:03:01]} 7. Nbd2 {[%clk 0:03:02]}  Na5 {[%clk 0:03:01]} 8. Be2 {[%clk 0:03:02]}  Bd7 {[%clk 0:03:02]} 9. Rb1 {[%clk 0:03:03]}  Ne7 {[%clk 0:03:01]} 10. O-O {[%clk 0:02:53]}  Qc7 {[%clk 0:03:00]} 11. Re1 {[%clk 0:02:46]}  Nc8 {[%clk 0:03:00]} 12. Nf1 {[%clk 0:02:46]}  Nb6 {[%clk 0:03:00]} 13. Ng3 {[%clk 0:02:42]}  Ba4 {[%clk 0:02:56]} 14. Qd2 {[%clk 0:02:39]}  O-O-O {[%clk 0:02:48]} 15. Nh5 {[%clk 0:02:33]}  Rg8 {[%clk 0:02:42]} 16. Qg5 {[%clk 0:02:29]}  Bc2 {[%clk 0:02:40]} 17. Ra1 {[%clk 0:02:26]}  Nb3 {[%clk 0:02:40]} 18. Ra2 {[%clk 0:02:27]}  Bb1 {[%clk 0:02:39]} 19. Ra1 {[%clk 0:02:18]}  Nxa1 {[%clk 0:02:28]} 20. Be3 {[%clk 0:02:13]}  Be7 {[%clk 0:02:27]} 21. Qg3 {[%clk 0:02:00]}  Bg6 {[%clk 0:02:27]} 22. Rxa1 {[%clk 0:01:59]}  Bxh5 {[%clk 0:02:27]} 0-1


[Site "https://www.chess.com"]

[Event "Titled Tuesday Blitz September 21 2021"]
[White "Makhnev, Denis"]
[Black "Ratnakaran, K."]
[WhiteFideId "13707647"]
[BlackFideId "5005507"]
[WhiteElo "2537"]
[BlackElo "2400"]
[Result "1-0"]
[Round "04"]
[TimeControl "180+1"]
[Date "2021.09.21"]
[WhiteClock "0:01:15"]
[BlackClock "0:01:41"]

1. Nf3 {[%clk 0:03:00]}  Nf6 {[%clk 0:02:54]} 2. c4 {[%clk 0:03:01]}  b5 {[%clk 0:02:54]} 3. Nc3 {[%clk 0:03:01]}  bxc4 {[%clk 0:02:54]} 4. e4 {[%clk 0:03:00]}  Bb7 {[%clk 0:02:52]} 5. e5 {[%clk 0:03:00]}  Ng4 {[%clk 0:02:52]} 6. Bxc4 {[%clk 0:02:56]}  d5 {[%clk 0:02:51]} 7. exd6 {[%clk 0:02:49]}  Qxd6 {[%clk 0:02:44]} 8. Qa4+ {[%clk 0:02:48]}  Qd7 {[%clk 0:02:36]} 9. Qb3 {[%clk 0:02:31]}  Bxf3 {[%clk 0:02:30]} 10. Bxf7+ {[%clk 0:02:31]}  Kd8 {[%clk 0:02:29]} 11. gxf3 {[%clk 0:02:31]}  Ne5 {[%clk 0:02:28]} 12. Bd5 {[%clk 0:02:28]}  Nd3+ {[%clk 0:02:26]} 13. Ke2 {[%clk 0:02:22]}  Nf4+ {[%clk 0:02:25]} 14. Kd1 {[%clk 0:02:22]}  c6 {[%clk 0:02:20]} 15. Be4 {[%clk 0:02:21]}  e5 {[%clk 0:02:18]} 16. Qc4 {[%clk 0:02:12]}  a5 {[%clk 0:02:08]} 17. Kc2 {[%clk 0:01:49]}  Na6 {[%clk 0:02:05]} 18. a3 {[%clk 0:01:49]}  Nc5 {[%clk 0:02:03]} 19. d4 {[%clk 0:01:47]}  Nce6 {[%clk 0:01:55]} 20. dxe5 {[%clk 0:01:40]}  Nd4+ {[%clk 0:01:47]} 21. Kb1 {[%clk 0:01:40]}  Nfe6 {[%clk 0:01:46]} 22. Rd1 {[%clk 0:01:39]}  Rb8 {[%clk 0:01:45]} 23. Bxc6 {[%clk 0:01:25]}  Qa7 {[%clk 0:01:44]} 24. Qxe6 {[%clk 0:01:19]}  Bxa3 {[%clk 0:01:41]} 25. Rxa3 {[%clk 0:01:15]} 1-0


[Site "https://www.chess.com"]

[Event "Titled Tuesday Blitz September 21 2021"]
[White "Maly, Alexey"]
[Black "Navalgund, Niranjan"]
[WhiteFideId "14103184"]
[BlackFideId "5030854"]
[WhiteElo "2250"]
[BlackElo "2290"]
[Result "1-0"]
[Round "04"]
[TimeControl "180+1"]
[Date "2021.09.21"]
[WhiteClock "0:02:06"]
[BlackClock "0:01:40"]

1. d4 {[%clk 0:03:00]}  Nf6 {[%clk 0:02:57]} 2. c4 {[%clk 0:03:01]}  Nc6 {[%clk 0:02:57]} 3. Nf3 {[%clk 0:03:01]}  e6 {[%clk 0:02:53]} 4. a3 {[%clk 0:03:01]}  d6 {[%clk 0:02:52]} 5. Nc3 {[%clk 0:03:01]}  g6 {[%clk 0:02:45]} 6. g3 {[%clk 0:03:02]}  Bg7 {[%clk 0:02:44]} 7. Bg2 {[%clk 0:03:02]}  O-O {[%clk 0:02:44]} 8. O-O {[%clk 0:03:03]}  Re8 {[%clk 0:02:41]} 9. d5 {[%clk 0:03:01]}  exd5 {[%clk 0:02:40]} 10. cxd5 {[%clk 0:03:02]}  Ne5 {[%clk 0:02:28]} 11. Nd4 {[%clk 0:03:02]}  a5 {[%clk 0:02:27]} 12. e4 {[%clk 0:02:56]}  Bd7 {[%clk 0:02:12]} 13. h3 {[%clk 0:02:55]}  Qb8 {[%clk 0:02:03]} 14. f4 {[%clk 0:02:54]}  Nc4 {[%clk 0:02:02]} 15. Kh2 {[%clk 0:02:50]}  h5 {[%clk 0:02:01]} 16. Qd3 {[%clk 0:02:47]}  Nb6 {[%clk 0:01:58]} 17. Bd2 {[%clk 0:02:44]}  a4 {[%clk 0:01:56]} 18. Rae1 {[%clk 0:02:43]}  Nh7 {[%clk 0:01:54]} 19. f5 {[%clk 0:02:31]}  Qd8 {[%clk 0:01:51]} 20. fxg6 {[%clk 0:02:29]}  fxg6 {[%clk 0:01:52]} 21. e5 {[%clk 0:02:24]}  Rxe5 {[%clk 0:01:49]} 22. Qxg6 {[%clk 0:02:20]}  Rxe1 {[%clk 0:01:46]} 23. Rf7 {[%clk 0:02:13]}  Qf6 {[%clk 0:01:42]} 24. Rxf6 {[%clk 0:02:13]}  Nxf6 {[%clk 0:01:43]} 25. Bxe1 {[%clk 0:02:12]}  Re8 {[%clk 0:01:42]} 26. Bd2 {[%clk 0:02:08]}  Nc4 {[%clk 0:01:40]} 27. Bh6 {[%clk 0:02:07]}  Re7 {[%clk 0:01:40]} 28. Bxg7 {[%clk 0:02:06]} 1-0


[Site "https://www.chess.com"]

[Event "Titled Tuesday Blitz September 21 2021"]
[White "Martinovici, Ilia"]
[Black "Thomas, Anysia"]
[WhiteFideId "13907034"]
[BlackFideId "670472"]
[WhiteElo "2303"]
[BlackElo "2004"]
[Result "1-0"]
[Round "04"]
[TimeControl "180+1"]
[Date "2021.09.21"]
[WhiteClock "0:00:59"]
[BlackClock "0:00:05"]

1. d4 {[%clk 0:02:59]}  Nf6 {[%clk 0:02:59]} 2. c4 {[%clk 0:02:59]}  g6 {[%clk 0:02:59]} 3. Nc3 {[%clk 0:02:59]}  d5 {[%clk 0:03:00]} 4. cxd5 {[%clk 0:02:59]}  Nxd5 {[%clk 0:03:01]} 5. e4 {[%clk 0:03:00]}  Nxc3 {[%clk 0:03:01]} 6. bxc3 {[%clk 0:03:01]}  Bg7 {[%clk 0:03:01]} 7. Bb5+ {[%clk 0:03:01]}  Nd7 {[%clk 0:02:58]} 8. Ne2 {[%clk 0:03:01]}  O-O {[%clk 0:02:58]} 9. O-O {[%clk 0:02:59]}  c5 {[%clk 0:02:58]} 10. d5 {[%clk 0:02:59]}  a6 {[%clk 0:02:51]} 11. Ba4 {[%clk 0:02:57]}  b5 {[%clk 0:02:51]} 12. Bc2 {[%clk 0:02:56]}  Ne5 {[%clk 0:02:40]} 13. a4 {[%clk 0:02:53]}  Bb7 {[%clk 0:02:32]} 14. Rb1 {[%clk 0:02:48]}  Qd7 {[%clk 0:02:03]} 15. f4 {[%clk 0:02:47]}  Nc4 {[%clk 0:02:01]} 16. Bd3 {[%clk 0:02:41]}  Nb6 {[%clk 0:01:05]} 17. axb5 {[%clk 0:02:37]}  c4 {[%clk 0:01:05]} 18. bxa6 {[%clk 0:02:00]}  cxd3 {[%clk 0:01:03]} 19. axb7 {[%clk 0:01:59]}  dxe2 {[%clk 0:01:03]} 20. Qxe2 {[%clk 0:01:54]}  Qxb7 {[%clk 0:00:50]} 21. Be3 {[%clk 0:01:54]}  Ra6 {[%clk 0:00:50]} 22. Qf2 {[%clk 0:01:38]}  Rb8 {[%clk 0:00:37]} 23. Rb3 {[%clk 0:01:35]}  Qc7 {[%clk 0:00:27]} 24. Rfb1 {[%clk 0:01:24]}  Nd7 {[%clk 0:00:23]} 25. Rxb8+ {[%clk 0:01:24]}  Nxb8 {[%clk 0:00:24]} 26. e5 {[%clk 0:01:24]}  Nd7 {[%clk 0:00:19]} 27. Bd4 {[%clk 0:01:22]}  Ra8 {[%clk 0:00:19]} 28. Re1 {[%clk 0:01:08]}  Qc4 {[%clk 0:00:17]} 29. Qf3 {[%clk 0:01:02]}  Nc5 {[%clk 0:00:16]} 30. d6 {[%clk 0:01:00]}  Nd3 {[%clk 0:00:15]} 31. Qxa8+ {[%clk 0:01:00]}  Bf8 {[%clk 0:00:13]} 32. dxe7 {[%clk 0:01:00]}  Nxe1 {[%clk 0:00:05]} 33. Qxf8# {[%clk 0:00:59]} 1-0


[Site "https://www.chess.com"]

[Event "Titled Tuesday Blitz September 21 2021"]
[White "Melikhov, Evgeny V."]
[Black "Rustemov, Alexander"]
[WhiteFideId "4122046"]
[BlackFideId "4119002"]
[WhiteElo "1927"]
[BlackElo "2754"]
[Result "0-1"]
[Round "04"]
[TimeControl "180+1"]
[Date "2021.09.21"]
[WhiteClock "0:00:01"]
[BlackClock "0:00:24"]

1. d4 {[%clk 0:03:00]}  d5 {[%clk 0:02:56]} 2. c4 {[%clk 0:03:00]}  dxc4 {[%clk 0:02:54]} 3. Nf3 {[%clk 0:03:00]}  a6 {[%clk 0:02:52]} 4. e3 {[%clk 0:02:59]}  e6 {[%clk 0:02:51]} 5. Bxc4 {[%clk 0:02:58]}  c5 {[%clk 0:02:51]} 6. O-O {[%clk 0:02:57]}  Nf6 {[%clk 0:02:50]} 7. a4 {[%clk 0:02:57]}  Be7 {[%clk 0:02:47]} 8. Nc3 {[%clk 0:02:52]}  O-O {[%clk 0:02:44]} 9. Qe2 {[%clk 0:02:50]}  b6 {[%clk 0:02:35]} 10. Rd1 {[%clk 0:02:48]}  Qc7 {[%clk 0:02:32]} 11. h3 {[%clk 0:02:47]}  Bb7 {[%clk 0:02:29]} 12. d5 {[%clk 0:02:47]}  exd5 {[%clk 0:02:26]} 13. Bxd5 {[%clk 0:02:47]}  Nxd5 {[%clk 0:02:19]} 14. Nxd5 {[%clk 0:02:46]}  Bxd5 {[%clk 0:02:18]} 15. Rxd5 {[%clk 0:02:46]}  Nd7 {[%clk 0:02:14]} 16. e4 {[%clk 0:02:40]}  Nf6 {[%clk 0:02:12]} 17. Rd1 {[%clk 0:02:31]}  Rfe8 {[%clk 0:02:10]} 18. Bg5 {[%clk 0:02:29]}  h6 {[%clk 0:02:07]} 19. Bxf6 {[%clk 0:02:26]}  Bxf6 {[%clk 0:02:06]} 20. Rac1 {[%clk 0:02:23]}  Qc6 {[%clk 0:02:02]} 21. e5 {[%clk 0:02:07]}  Qxa4 {[%clk 0:01:58]} 22. Rc4 {[%clk 0:02:06]}  Qb5 {[%clk 0:01:54]} 23. Re4 {[%clk 0:01:57]}  Qxe2 {[%clk 0:01:52]} 24. Rxe2 {[%clk 0:01:58]}  Re6 {[%clk 0:01:45]} 25. Rde1 {[%clk 0:01:52]}  Rae8 {[%clk 0:01:44]} 26. Kf1 {[%clk 0:01:52]}  Bd8 {[%clk 0:01:39]} 27. Nd2 {[%clk 0:01:48]}  Bc7 {[%clk 0:01:36]} 28. f4 {[%clk 0:01:48]}  g5 {[%clk 0:01:25]} 29. g3 {[%clk 0:01:48]}  gxf4 {[%clk 0:01:24]} 30. gxf4 {[%clk 0:01:47]}  f6 {[%clk 0:01:25]} 31. Nf3 {[%clk 0:01:42]}  fxe5 {[%clk 0:01:23]} 32. fxe5 {[%clk 0:01:36]}  c4 {[%clk 0:01:17]} 33. Rd1 {[%clk 0:01:18]}  b5 {[%clk 0:01:16]} 34. Rd7 {[%clk 0:01:12]}  R8e7 {[%clk 0:01:15]} 35. Rd5 {[%clk 0:01:06]}  Kf7 {[%clk 0:01:11]} 36. Re4 {[%clk 0:00:59]}  Ke8 {[%clk 0:01:10]} 37. Ke2 {[%clk 0:00:55]}  Rd7 {[%clk 0:01:09]} 38. Rc5 {[%clk 0:00:50]}  Bb6 {[%clk 0:01:02]} 39. Rc8+ {[%clk 0:00:47]}  Rd8 {[%clk 0:01:02]} 40. Rxd8+ {[%clk 0:00:45]}  Kxd8 {[%clk 0:01:02]} 41. Rg4 {[%clk 0:00:41]}  Bc7 {[%clk 0:00:58]} 42. Kd2 {[%clk 0:00:29]}  Bxe5 {[%clk 0:00:53]} 43. Nxe5 {[%clk 0:00:19]}  Rxe5 {[%clk 0:00:53]} 44. Rg6 {[%clk 0:00:20]}  Rh5 {[%clk 0:00:51]} 45. Rxa6 {[%clk 0:00:20]}  Rxh3 {[%clk 0:00:51]} 46. Rb6 {[%clk 0:00:19]}  Rb3 {[%clk 0:00:44]} 47. Rxh6 {[%clk 0:00:19]}  Rxb2+ {[%clk 0:00:43]} 48. Kc3 {[%clk 0:00:19]}  Rb3+ {[%clk 0:00:43]} 49. Kd4 {[%clk 0:00:17]}  Ke7 {[%clk 0:00:42]} 50. Rg6 {[%clk 0:00:15]}  c3 {[%clk 0:00:41]} 51. Kd3 {[%clk 0:00:15]}  b4 {[%clk 0:00:41]} 52. Kc2 {[%clk 0:00:15]}  Rb2+ {[%clk 0:00:41]} 53. Kc1 {[%clk 0:00:09]}  Kd7 {[%clk 0:00:35]} 54. Rh6 {[%clk 0:00:09]}  Kc7 {[%clk 0:00:35]} 55. Rg6 {[%clk 0:00:09]}  Kb7 {[%clk 0:00:30]} 56. Rh6 {[%clk 0:00:09]}  b3 {[%clk 0:00:28]} 57. Rh3 {[%clk 0:00:08]}  Rc2+ {[%clk 0:00:27]} 58. Kb1 {[%clk 0:00:08]}  Kc6 {[%clk 0:00:27]} 59. Rh5 {[%clk 0:00:05]}  Rd2 {[%clk 0:00:24]} 60. Rh1 {[%clk 0:00:01]}  Kc5 {[%clk 0:00:24]} 0-1


[Site "https://www.chess.com"]

[Event "Titled Tuesday Blitz September 21 2021"]
[White "Mezentsev, Ivan"]
[Black "Khanin, Semen"]
[WhiteFideId "13706195"]
[BlackFideId "4111990"]
[WhiteElo "2295"]
[BlackElo "2449"]
[Result "0-1"]
[Round "04"]
[TimeControl "180+1"]
[Date "2021.09.21"]
[WhiteClock "0:00:11"]
[BlackClock "0:00:21"]

1. d4 {[%clk 0:03:00]}  Nf6 {[%clk 0:02:58]} 2. Nf3 {[%clk 0:03:00]}  g6 {[%clk 0:02:57]} 3. Bf4 {[%clk 0:02:59]}  Bg7 {[%clk 0:02:57]} 4. e3 {[%clk 0:02:52]}  d6 {[%clk 0:02:56]} 5. h3 {[%clk 0:02:50]}  b6 {[%clk 0:02:56]} 6. Be2 {[%clk 0:02:49]}  Bb7 {[%clk 0:02:57]} 7. O-O {[%clk 0:02:49]}  O-O {[%clk 0:02:57]} 8. a4 {[%clk 0:02:49]}  Nc6 {[%clk 0:02:55]} 9. c3 {[%clk 0:02:46]}  Re8 {[%clk 0:02:52]} 10. Bh2 {[%clk 0:02:44]}  a6 {[%clk 0:02:46]} 11. Na3 {[%clk 0:02:42]}  e5 {[%clk 0:02:41]} 12. Nc4 {[%clk 0:02:36]}  exd4 {[%clk 0:02:40]} 13. exd4 {[%clk 0:02:34]}  Qd7 {[%clk 0:02:41]} 14. Re1 {[%clk 0:02:33]}  Ne7 {[%clk 0:02:41]} 15. Nfd2 {[%clk 0:02:28]}  h5 {[%clk 0:02:35]} 16. Bf3 {[%clk 0:02:27]}  Bxf3 {[%clk 0:02:20]} 17. Qxf3 {[%clk 0:02:27]}  Ned5 {[%clk 0:02:17]} 18. a5 {[%clk 0:01:53]}  b5 {[%clk 0:02:15]} 19. Ne3 {[%clk 0:01:53]}  Nxe3 {[%clk 0:02:15]} 20. fxe3 {[%clk 0:01:49]}  Rab8 {[%clk 0:01:44]} 21. e4 {[%clk 0:01:47]}  b4 {[%clk 0:01:45]} 22. e5 {[%clk 0:01:34]}  dxe5 {[%clk 0:01:43]} 23. Bxe5 {[%clk 0:01:35]}  bxc3 {[%clk 0:01:40]} 24. bxc3 {[%clk 0:01:34]}  Nd5 {[%clk 0:01:38]} 25. Bxg7 {[%clk 0:01:24]}  Kxg7 {[%clk 0:01:38]} 26. Ne4 {[%clk 0:01:24]}  Rb2 {[%clk 0:01:21]} 27. Nc5 {[%clk 0:01:18]}  Rxe1+ {[%clk 0:01:19]} 28. Rxe1 {[%clk 0:01:18]}  Qf5 {[%clk 0:01:08]} 29. Qxf5 {[%clk 0:01:13]}  gxf5 {[%clk 0:01:09]} 30. Ra1 {[%clk 0:01:08]}  f4 {[%clk 0:00:51]} 31. Nxa6 {[%clk 0:01:06]}  Ne3 {[%clk 0:00:51]} 32. Nxc7 {[%clk 0:01:02]}  Rxg2+ {[%clk 0:00:50]} 33. Kh1 {[%clk 0:01:02]}  Kh6 {[%clk 0:00:31]} 34. a6 {[%clk 0:00:55]}  f3 {[%clk 0:00:31]} 35. Rg1 {[%clk 0:00:14]}  Ra2 {[%clk 0:00:28]} 36. d5 {[%clk 0:00:14]}  f2 {[%clk 0:00:28]} 37. d6 {[%clk 0:00:14]}  Nf5 {[%clk 0:00:21]} 38. d7 {[%clk 0:00:13]}  Ng3+ {[%clk 0:00:21]} 39. Kg2 {[%clk 0:00:11]}  f1=Q+ {[%clk 0:00:21]} 40. Kxg3 {[%clk 0:00:11]}  Qf2# {[%clk 0:00:21]} 0-1


[Site "https://www.chess.com"]

[Event "Titled Tuesday Blitz September 21 2021"]
[White "Moskalenko, Alexander"]
[Black "Yaniuk, Volodymyr"]
[WhiteFideId "4155351"]
[BlackFideId "14133083"]
[WhiteElo "2515"]
[BlackElo "2207"]
[Result "1-0"]
[Round "04"]
[TimeControl "180+1"]
[Date "2021.09.21"]
[WhiteClock "0:01:14"]
[BlackClock "0:00:10"]

1. c4 {[%clk 0:03:00]}  e5 {[%clk 0:02:59]} 2. Nc3 {[%clk 0:03:01]}  Nf6 {[%clk 0:02:58]} 3. Nf3 {[%clk 0:03:01]}  Nc6 {[%clk 0:02:58]} 4. d3 {[%clk 0:03:00]}  g6 {[%clk 0:02:56]} 5. g3 {[%clk 0:02:58]}  Bg7 {[%clk 0:02:56]} 6. Bg2 {[%clk 0:02:59]}  O-O {[%clk 0:02:56]} 7. O-O {[%clk 0:02:59]}  Re8 {[%clk 0:02:55]} 8. Bg5 {[%clk 0:02:51]}  h6 {[%clk 0:02:55]} 9. Bxf6 {[%clk 0:02:52]}  Qxf6 {[%clk 0:02:56]} 10. Rb1 {[%clk 0:02:49]}  a5 {[%clk 0:02:53]} 11. a3 {[%clk 0:02:48]}  d6 {[%clk 0:02:52]} 12. b4 {[%clk 0:02:45]}  axb4 {[%clk 0:02:52]} 13. axb4 {[%clk 0:02:46]}  Bg4 {[%clk 0:02:48]} 14. h3 {[%clk 0:02:43]}  Bf5 {[%clk 0:02:43]} 15. Nd5 {[%clk 0:02:35]}  Qd8 {[%clk 0:02:42]} 16. Nd2 {[%clk 0:02:35]}  Bc8 {[%clk 0:02:38]} 17. e3 {[%clk 0:02:34]}  Ne7 {[%clk 0:02:34]} 18. Nxe7+ {[%clk 0:02:33]}  Qxe7 {[%clk 0:02:35]} 19. b5 {[%clk 0:02:33]}  Ra2 {[%clk 0:02:32]} 20. Ra1 {[%clk 0:02:28]}  Rxa1 {[%clk 0:02:23]} 21. Qxa1 {[%clk 0:02:29]}  b6 {[%clk 0:02:23]} 22. Ne4 {[%clk 0:02:21]}  f5 {[%clk 0:02:17]} 23. Nc3 {[%clk 0:02:21]}  Be6 {[%clk 0:02:12]} 24. Nd5 {[%clk 0:02:18]}  Qf7 {[%clk 0:02:09]} 25. Qa7 {[%clk 0:02:16]}  Kh7 {[%clk 0:01:52]} 26. Rc1 {[%clk 0:02:09]}  e4 {[%clk 0:01:50]} 27. dxe4 {[%clk 0:01:59]}  fxe4 {[%clk 0:01:51]} 28. Qxc7 {[%clk 0:01:59]}  Bxd5 {[%clk 0:01:04]} 29. cxd5 {[%clk 0:01:59]}  Qxd5 {[%clk 0:01:00]} 30. Qxb6 {[%clk 0:01:58]}  Qd2 {[%clk 0:00:54]} 31. Qc6 {[%clk 0:01:57]}  Rf8 {[%clk 0:00:52]} 32. Rf1 {[%clk 0:01:54]}  d5 {[%clk 0:00:52]} 33. b6 {[%clk 0:01:54]}  Rf6 {[%clk 0:00:34]} 34. Qb5 {[%clk 0:01:35]}  Qd3 {[%clk 0:00:20]} 35. Rb1 {[%clk 0:01:17]}  Qxb5 {[%clk 0:00:14]} 36. Rxb5 {[%clk 0:01:16]}  Rf8 {[%clk 0:00:10]} 37. Rxd5 {[%clk 0:01:15]}  Rb8 {[%clk 0:00:10]} 38. Rb5 {[%clk 0:01:14]} 1-0


[Site "https://www.chess.com"]